[Event "CCC-IM 2022"]
[Site "Ballerup"]
[Date "2022.05.29"]
[Round "9.2"]
[White "Kenneskog, Theodor"]
[Black "Kistrup, Nicolai"]
[Result "1-0"]
[ECO "C88"]
[WhiteElo "2296"]
[BlackElo "2306"]
[Annotator "TA"]
[PlyCount "77"]
[EventDate "2022.05.25"]
[EventType "tourn"]
[EventCountry "DEN"]
[SourceTitle "playchess.com"]
[Source "ChessBase"]
[SourceQuality "1"]
[TimeControl "5400+30"]

{[%evp 19,77,2,14,-14,7,12,6,16,0,0,0,0,37,39,41,48,56,43,33,22,136,141,141,145,195,181,202,191,259,62,253,76,1270,803,1290,220,1178,1150,1043,1106,963,806,755,312,303,285,29976,29976,29977,29978,29967,6527,6527,2515,2515,1162,2028,1179,989,439]} 1. e4 {[%emt 0:00:04]} e5 {[%emt 0:00:10]} 2. Nf3 {[%emt 0:00:05]} Nc6 {[%emt 0:00:10]} 3. Bb5 {[%emt 0:00:05]} a6 {[%emt 0:00:04]} 4. Ba4 {[%emt 0:00:03]} Nf6 {[%emt 0:00:11]} 5. O-O {[%emt 0:00:06]} Be7 {[%emt 0:00:11]} 6. Re1 {[%emt 0:00:05]} b5 {[%emt 0:00:04]} 7. Bb3 {[%emt 0:00:03]} O-O {[%emt 0:00:21]} 8. a4 {[%emt 0:00:04]} b4 {[%emt 0:00:45]} 9. d4 $1 {[%emt 0:00:11][%mdl 4] is now more promising than 9.d3.} d6 {[%emt 0:00:26]} 10. dxe5 {[%emt 0:00:06]} Nxe5 {[%emt 0:00:13]} 11. Bf4 {[%emt 0:00:05] C88: Closed Ruy Lopez: Anti-Marshall Systems.} Nxf3+ {[%emt 0:40:03]} 12. Qxf3 {[%emt 0:00:14]} Bb7 {[%emt 0:02:15]} 13. Nd2 {[%emt 0:00:15] [#] The position is equal.} a5 $146 {[%emt 0:05:49]} ({Predecessor:} 13... Nd7 14. c3 bxc3 15. bxc3 Bf6 16. Rad1 Rb8 17. Bc2 Qe8 18. Qh3 Ne5 19. Nc4 Bc8 20. Qg3 Nxc4 21. e5 Nxe5 22. Bh6 Rb2 {0-1 (22) Natter,S (2262)-Kleiser,G (2292) Jenbach 2009}) 14. Rad1 {[%emt 0:26:05]} Nd7 {[%emt 0:04:16]} 15. Qg3 {[%emt 0:00:32]} Bh4 {[%emt 0:15:05]} (15... Re8 $5 {[%cal Re7f6]}) 16. Qg4 {[%emt 0:04:18] Nf3 is the strong threat.} Bf6 {[%emt 0:04:25]} 17. Nc4 {[%emt 0:04:44] Strongly threatening e5.} Qc8 {[%emt 0:03:46]} 18. Qg3 {[%emt 0:38:02]} (18. e5 {looks sharper.} dxe5 19. Rxd7 exf4 20. Ne5) 18... Ra6 {[%emt 0:10:39]} 19. f3 {[%emt 0:11:01]} Re8 {[%emt 0:04:42] White now steadily converts the win.} (19... Qd8 $11 {keeps the balance.}) 20. e5 $1 $16 {[%emt 0:02:59] White is more active.} dxe5 {[%emt 0:02:56]} 21. Bxe5 {[%emt 0:00:36]} Nxe5 {[%emt 0:01:08]} (21... Rae6 $16 {was worth a try.} 22. Bxf6 Nxf6) 22. Nxe5 $18 {[%emt 0:00:04]} Bxe5 {[%emt 0:02:03]} 23. Rxe5 {[%emt 0:00:04]} Rg6 {[%emt 0:00:23]} (23... Rd6 {is a better defense.} 24. Rde1 (24. Rxd6 cxd6 25. Rxa5 Qc7 $16) 24... Rxe5 25. Qxe5 g6 26. Qxa5 c5) 24. Rxe8+ {[%emt 0:05:51]} Qxe8 {[%emt 0:00:04] [#]} 25. Qe5 {[%emt 0:00:20]} ({Don't blunder} 25. Qxc7 $2 Rxg2+ 26. Kxg2 Qe2+ 27. Kg1 Qxd1+ 28. Kf2 Qxf3+ 29. Ke1 h5 $17) (25. Re1 $1 $18 {[%cal Re1e8] and the rest is easy.} Qd7 {[#]} 26. Qxc7 $3 {[%mdl 512]}) 25... Qc8 {[%emt 0:02:17][%mdl 8192] [#]} (25... Qxe5 $2 {is a self mate.} 26. Rd8+) (25... Rxg2+ $2 26. Kxg2 Bc6 27. Qxe8+ Bxe8 28. Rd5 $18) (25... Kf8 $16 26. Qxe8+ (26. Qxa5 Rxg2+ 27. Kxg2 Qe2+ 28. Kg1 Qxd1+ 29. Kf2 Qxf3+ 30. Ke1 Qh1+ 31. Kf2 Qxh2+ 32. Ke3 Qh6+ 33. Kf2 Qd2+ 34. Kf1 Qg2+ 35. Ke1 Qg1+ 36. Ke2 Qg4+ 37. Ke1 Qg3+ 38. Kd2 Qf2+ 39. Kd3 Ba6+ 40. Ke4 Qe2+ 41. Kf4 Qd2+ 42. Ke4 Bb7+ 43. Bd5 Qxc2+ 44. Kf3 Qb3+ 45. Kf2 Qxb2+ 46. Kf1 Qf6+ 47. Ke2 Qe5+ 48. Kf1 Qxd5 $19) 26... Kxe8) 26. Qf5 $3 {[%emt 0:02:15][%mdl 512] Qxc8+ would kill now.} Rd6 {[%emt 0:00:33]} (26... Re6 27. Bxe6) 27. Qxf7+ $40 {[%emt 0:02:20][%mdl 128] White is out for blood.} Kh8 {[%emt 0:00:05]} 28. Re1 {[%emt 0:00:05][%cal Bd1e1,Be1e7,Be7d7][%mdl 32] Threatening mate with Re8+.} Bc6 {[%emt 0:00:54] Inhibits Re8+.} 29. Re7 {[%emt 0:02:17][%csl Ge7,LRc7,LRg7][%cal Rf7g7]} Rg6 {[%emt 0:00:10]} 30. Be6 {[%emt 0:01:15]} Qd8 {[%emt 0:00:48]} 31. Bd7 {[%emt 0:00:33]} (31. Bc4 $142) 31... Bxd7 {[%emt 0:00:29]} 32. Rxd7 {[%emt 0:00:06][%cal Rd7d8][%mdl 4096] Endgame KQR-KQR} Qb8 {[%emt 0:00:26]} (32... Qg8 $18 33. Qxg8+ Kxg8 34. Rxc7 Rd6) 33. Re7 {[%emt 0:00:53]} Qb6+ {[%emt 0:00:32]} 34. Kh1 {[%emt 0:00:20][%cal Re7e8]} h5 {[%emt 0:00:24]} 35. Re8+ {[%emt 0:00:38]} Kh7 {[%emt 0:00:05] White is clearly winning.} 36. Qg8+ {[%emt 0:00:24]} (36. f4 $142 Rxg2 37. Qxh5+ Qh6 38. Qxh6+ Kxh6 39. Kxg2) 36... Kh6 {[%emt 0:00:04]} 37. Qh8+ {[%emt 0:00:31]} Kg5 {[%emt 0:00:06]} 38. Re5+ {[%emt 0:00:23]} Kf6 {[%emt 0:00:36]} 39. Qxh5 {[%emt 0:00:38] Weighted Error Value: White=0.41/Black=0.62} (39. Rd5 $142 Qc6 40. Qf8+ Ke6 41. Rd4) 1-0

[Event "CCC-IM 2022"]
[Site "Ballerup"]
[Date "2022.05.29"]
[Round "9.3"]
[White "Casper Yukun Liu"]
[Black "Jacobsen, Mikkel Manosri"]
[Result "1-0"]
[ECO "B10"]
[WhiteElo "2218"]
[BlackElo "2251"]
[Annotator "TA"]
[PlyCount "153"]
[EventDate "2022.05.25"]
[EventType "tourn"]
[EventCountry "DEN"]
[SourceTitle "playchess.com"]
[Source "ChessBase"]
[SourceQuality "1"]
[TimeControl "5400+30"]

{[%evp 9,153,12,22,13,36,14,10,16,29,19,36,25,37,16,47,10,14,12,9,13,17,4,4,10,22,0,7,0,0,0,104,-25,-21,-28,-11,-13,0,0,0,-14,-11,-16,-4,-10,20,34,47,24,27,29,16,20,23,21,50,40,68,61,59,59,66,43,39,51,50,22,20,21,23,33,29,0,0,0,40,35,78,92,158,139,196,169,166,152,195,202,193,107,103,114,111,112,225,232,275,236,507,492,488,485,477,468,459,450,592,573,556,556,547,429,1242,949,5376,5361,4562,2823,5383,5383,5383,5383,5555,5548,5528,5502,5383,5383,5368,5361,5361,5361,5237,5216,5186,5186,5093,5064,5057,5057,5548,4630,4630,4618,4582,693,29986,29987]} 1. e4 {[%emt 0:00:21]} c6 {[%emt 0:00:11]} 2. Nf3 {[%emt 0:00:55]} d5 {[%emt 0:00:07]} 3. exd5 {[%emt 0:00:18]} cxd5 {[%emt 0:00:03]} 4. Ne5 {[%emt 0:00:08]} Nf6 {[%emt 0:00:53]} 5. d4 {[%emt 0:00:02]} g6 {[%emt 0:00:22]} 6. Bb5+ {[%emt 0:00:07] B10: Caro-Kann: 2 d3 and 2 c4.} Bd7 {[%emt 0:01:45]} 7. Bd3 {[%emt 0:00:05]} Bg7 {[%emt 0:00:05]} 8. c3 {[%emt 0:04:35] The position is equal.} Nc6 {[%emt 0:01:33] [#]} 9. Nd2 $146 {[%emt 0:03:50]} ({Predecessor:} 9. Qe2 Nxe5 10. dxe5 Ne4 11. O-O Qc7 12. Bf4 Nc5 13. Re1 Nxd3 14. Qxd3 Qb6 15. Qd2 {1-0 (50) Palac,M (2546)-Blazeka,M (2357) Mali Losinj 2019}) 9... O-O {[%emt 0:17:11]} 10. h3 {[%emt 0:04:04]} Qc7 {[%emt 0:04:10]} 11. Qe2 {[%emt 0:01:52]} Bf5 {[%emt 0:12:56]} 12. Ndf3 {[%emt 0:08:24]} Bxd3 {[%emt 0:01:03]} 13. Nxd3 {[%emt 0:00:22]} Ne4 {[%emt 0:02:05]} 14. O-O {[%emt 0:02:52]} e6 {[%emt 0:02:34]} 15. Bf4 {[%emt 0:02:10]} Qe7 {[%emt 0:00:14]} 16. Nd2 {[%emt 0:01:33]} g5 {[%emt 0:02:04]} 17. Be3 {[%emt 0:02:24]} f5 {[%emt 0:00:32]} (17... h6 {is more complex.} 18. Kh2 f5 19. Rae1 Rae8) 18. Nxe4 {[%emt 0:02:56]} dxe4 {[%emt 0:02:14]} 19. Nc5 {[%emt 0:00:23][%cal Oe3g5]} b6 {[%emt 0:02:34] [#]} (19... h6 $11 {keeps the balance.}) 20. Nb3 {[%emt 0:05:59]} ({White must play} 20. Bxg5 $1 $16 {[%mdl 512]} Qxg5 21. Nxe6) 20... h6 $11 {[%emt 0:07:43]} 21. f4 {[%emt 0:00:01]} exf3 {[%emt 0:05:25]} 22. Qxf3 {[%emt 0:00:31]} Qd7 {[%emt 0:03:30]} 23. Rad1 {[%emt 0:05:35][%cal Oh3h4]} Ne7 {[%emt 0:02:07]} 24. Bc1 {[%emt 0:04:44]} Ng6 {[%emt 0:06:54]} 25. Qh5 {[%emt 0:11:53]} Qf7 {[%emt 0:01:07]} 26. Nd2 {[%emt 0:00:01][%cal Bb3d2,Bd2e4,Be4c5][%mdl 32]} b5 {[%emt 0:06:05]} 27. Ne4 {[%emt 0:03:49]} Nh8 {[%emt 0:06:41]} 28. Qxf7+ {[%emt 0:01:35]} (28. Qe2 {with more complications.} a6 29. h4 gxh4 30. Rde1) 28... Nxf7 {[%emt 0:00:02]} 29. Nc5 {[%emt 0:00:05]} Rfe8 {[%emt 0:01:34]} 30. d5 {[%emt 0:05:06]} exd5 {[%emt 0:02:12][%cal Od5d4]} 31. Rxf5 {[%emt 0:00:07]} d4 {[%emt 0:00:09]} 32. cxd4 {[%emt 0:00:26]} Rad8 {[%emt 0:01:43]} 33. d5 {[%emt 0:00:19] White is more active.} Nd6 {[%emt 0:00:10]} 34. Rff1 {[%emt 0:00:40]} Re2 {[%emt 0:02:03]} 35. Rf2 {[%emt 0:02:09]} (35. Ne6 $5 {[%cal Re6d8]} Rc8 36. Rfe1 Rxe1+ 37. Rxe1 $16) 35... Rxf2 {[%emt 0:02:55]} 36. Kxf2 {[%emt 0:00:02]} Rc8 {[%emt 0:00:06]} 37. b4 {[%emt 0:01:23]} a5 $1 {[%emt 0:02:42]} 38. a3 {[%emt 0:00:09]} Bc3 {[%emt 0:00:22]} 39. Bd2 {[%emt 0:01:23]} Bb2 {[%emt 0:00:18]} 40. Bc1 {[%emt 0:04:20]} (40. Nd3 $5 {[%cal Rd3b2]} Bd4+ 41. Ke2 $11) 40... Bc3 {[%emt 0:01:37]} 41. Bd2 {[%emt 0:01:07]} Bb2 {[%emt 0:00:47]} 42. Nd3 {[%emt 0:07:55]} Bxa3 {[%emt 0:00:15]} 43. bxa5 {[%emt 0:00:07] Threatens to win with Ra1.} Ne4+ {[%emt 0:01:57]} ({Black should try} 43... Ra8) 44. Ke3 {[%emt 0:00:26]} Nf6 {[%emt 0:00:42]} (44... Nd6 $16 45. Ra1 Nc4+ 46. Ke2 Re8+ 47. Kf2 Rf8+ 48. Ke1 Re8+ 49. Kf2 Rf8+ 50. Ke2 Re8+ 51. Kf2) 45. Rb1 {[%emt 0:04:38]} Nxd5+ {[%emt 0:00:26] [#]} 46. Ke4 $1 {[%emt 0:00:11]} Nc7 {[%emt 0:00:31]} 47. Bb4 {[%emt 0:01:06]} Re8+ {[%emt 0:00:01]} 48. Kd4 {[%emt 0:00:47]} (48. Kf5 $18 Bxb4 49. Nxb4) 48... Rd8+ $16 {[%emt 0:00:41] [#]} 49. Kc3 $1 {[%emt 0:00:17]} Nd5+ {[%emt 0:00:43]} 50. Kb3 {[%emt 0:00:02]} Bxb4 {[%emt 0:00:11]} (50... Nc7 $16 51. Kxa3 Rxd3+ 52. Rb3 Rd5) 51. Nxb4 {[%emt 0:00:03][%mdl 4096] Endgame KRN-KRN} Nf4 {[%emt 0:00:20]} 52. a6 {[%emt 0:00:45][%cal Ba5a6,Ba6a7][%mdl 32]} Nxg2 $2 {[%emt 0:00:13]} (52... Ra8 {might work better.} 53. Ra1 h5) 53. a7 $18 {[%emt 0:00:38]} Nf4 {[%emt 0:00:13]} 54. Nc6 {[%emt 0:01:25]} Ra8 {[%emt 0:00:05]} 55. Kb4 {[%emt 0:01:55]} Kg7 {[%emt 0:02:04]} 56. Rd1 {[%emt 0:01:04]} Nxh3 {[%emt 0:00:21]} 57. Rd8 {[%emt 0:00:17]} Rxa7 {[%emt 0:00:01]} 58. Nxa7 {[%emt 0:00:02]} g4 {[%emt 0:00:51]} 59. Kc3 {[%emt 0:01:17] aiming for Kd2.} Nf4 {[%emt 0:00:43]} (59... h5 $142 60. Rd2 (60. Nxb5 g3 $11) 60... g3) 60. Kd2 {[%emt 0:00:38]} g3 {[%emt 0:00:49]} 61. Ke3 {[%emt 0:00:10]} g2 {[%emt 0:00:04]} 62. Kf2 {[%emt 0:00:04]} Kf6 {[%emt 0:00:24]} 63. Nxb5 {[%emt 0:00:39]} h5 {[%emt 0:00:02]} 64. Nd4 {[%emt 0:00:16]} h4 {[%emt 0:00:08]} 65. Rf8+ {[%emt 0:00:26]} Kg5 {[%emt 0:00:19]} 66. Nf3+ {[%emt 0:02:09]} Kg4 {[%emt 0:00:05]} 67. Rh8 {[%emt 0:04:01]} h3 {[%emt 0:01:28]} 68. Rh4+ {[%emt 0:00:02]} Kf5 {[%emt 0:00:10]} 69. Kg3 {[%emt 0:00:43]} Ne2+ {[%emt 0:01:29]} 70. Kh2 {[%emt 0:00:11]} Nf4 {[%emt 0:00:20]} 71. Ng1 {[%emt 0:00:20]} Kg5 {[%emt 0:00:20]} 72. Rh8 {[%emt 0:00:51]} Kg4 {[%emt 0:00:55]} 73. Rg8+ {[%emt 0:00:19]} Kh4 {[%emt 0:00:35]} 74. Rg7 {[%emt 0:00:18] Intending Rg8 and mate.} Ne6 {[%emt 0:00:44]} 75. Rh7+ {[%emt 0:00:26]} Kg4 {[%emt 0:00:06]} 76. Nxh3 {[%emt 0:00:16]} Ng5 {[%emt 0:00:27]} 77. Nxg5 {[%emt 0:00:10] Weighted Error Value: White=0.14 (very precise) /Black=0.22 (precise)} 1-0

[Event "CCC-IM 2022"]
[Site "Ballerup"]
[Date "2022.05.29"]
[Round "9.4"]
[White "Sahl, Bjarke"]
[Black "Rostgaard, Tobias Valentin"]
[Result "0-1"]
[ECO "E90"]
[WhiteElo "2312"]
[BlackElo "2339"]
[Annotator "TA"]
[PlyCount "90"]
[EventDate "2022.05.25"]
[EventType "tourn"]
[EventCountry "DEN"]
[SourceTitle "playchess.com"]
[Source "ChessBase"]
[SourceQuality "1"]
[TimeControl "5400+30"]

{[%evp 17,90,-23,0,-45,-48,-63,-17,-46,-27,-28,-33,-67,-51,-63,-47,-37,-45,-72,-68,-65,-62,-58,-61,-68,-62,-75,-80,-80,-78,-80,-80,-83,-69,-69,-69,-70,-38,-41,-47,-64,-64,-68,-71,-78,-78,-78,-75,-76,-55,-62,-24,-78,-78,-78,-78,-78,-78,-87,-78,-78,-62,-117,-53,-399,-360,-455,-435,-430,-431,-472,-456,-470,-439,-506,-341]} 1. d4 {[%emt 0:00:37]} Nf6 {[%emt 0:00:09]} 2. c4 {[%emt 0:00:05]} g6 {[%emt 0:00:08]} 3. Nc3 {[%emt 0:00:09]} Bg7 {[%emt 0:00:06]} 4. e4 {[%emt 0:01:21]} d6 {[%emt 0:00:05]} 5. Nf3 {[%emt 0:01:52]} O-O {[%emt 0:00:16]} 6. Be3 {[%emt 0:00:34]} e5 {[%emt 0:00:49]} 7. dxe5 {[%emt 0:00:15]} dxe5 {[%emt 0:00:11]} 8. Qxd8 {[%emt 0:00:06]} Rxd8 {[%emt 0:00:06]} 9. Nd5 {[%emt 0:00:05]} Na6 {[%emt 0:03:38][%cal Bb8a6,Ba6c7,Bc7e6][%mdl 32]} ({Much less strong is} 9... Nxe4 10. Nxc7 Be6 11. Nxa8 $16) 10. Nxf6+ {[%emt 0:14:00] E90: King's Indian: Classical: Early deviations and 6 h3.} Bxf6 {[%emt 0:00:10]} 11. a3 {[%emt 0:00:06] Against Nb4} c6 {[%emt 0:02:54] [#]} (11... b6 $15) 12. Nd2 $146 {[%emt 0:00:07] The position is equal.} ({Predecessor:} 12. Be2 Nc7 13. O-O Bg4 14. h3 Bxf3 15. Bxf3 Ne6 16. Bg4 Nd4 17. Bd1 Ne6 18. Bg4 {0-1 (53) Velten,P (2485)-Rahul,S (2379) Montebelluna 2018}) 12... b6 {[%emt 0:00:54]} 13. Be2 {[%emt 0:02:24]} Nc7 {[%emt 0:02:08]} 14. O-O {[%emt 0:01:49]} Ne6 {[%emt 0:00:25]} 15. Rfc1 {[%emt 0:00:11]} Bg5 {[%emt 0:01:09]} 16. Bxg5 {[%emt 0:01:37]} Nxg5 {[%emt 0:00:29]} 17. Nf3 {[%emt 0:00:24]} Nxf3+ {[%emt 0:01:56]} 18. Bxf3 {[%emt 0:00:06]} c5 {[%emt 0:00:15][%cal Bc6c5,Bc5d4][%mdl 32]} 19. Rd1 {[%emt 0:00:48]} Be6 {[%emt 0:00:09]} 20. b3 {[%emt 0:00:09]} Rd4 {[%emt 0:00:25]} 21. Rxd4 {[%emt 0:00:13]} cxd4 $15 {[%emt 0:00:06][%mdl 4096] Endgame KRB-KRB} 22. Be2 {[%emt 0:01:11]} Kf8 {[%emt 0:00:23]} 23. Kf1 {[%emt 0:00:53]} Ke7 {[%emt 0:00:33]} 24. Ke1 {[%emt 0:00:23]} f5 {[%emt 0:01:37]} 25. Bd3 {[%emt 0:00:04][%cal Of2f4]} f4 {[%emt 0:01:52]} 26. h4 {[%emt 0:02:36]} g5 {[%emt 0:05:25]} 27. hxg5 {[%emt 0:00:16]} Rg8 {[%emt 0:00:04]} 28. Ke2 {[%emt 0:02:13]} Rxg5 {[%emt 0:00:18]} 29. Rh1 {[%emt 0:00:05]} h5 {[%emt 0:00:08]} ({Of course not} 29... Rxg2 30. Rxh7+ Kd6 31. Rxa7 $11) 30. Kf1 {[%emt 0:01:24]} Bf7 {[%emt 0:00:44]} 31. Be2 {[%emt 0:01:08]} Kd6 {[%emt 0:00:23]} 32. Rh3 {[%emt 0:01:19]} Bg6 {[%emt 0:00:55]} 33. Bd3 {[%emt 0:00:31]} Kc5 {[%emt 0:00:57]} 34. f3 {[%emt 0:01:25]} (34. g3 $11) 34... Bf7 $17 {[%emt 0:00:33]} 35. Kf2 {[%emt 0:00:19]} Kd6 {[%emt 0:00:26]} 36. Rh1 {[%emt 0:01:30]} Rg8 {[%emt 0:00:12]} 37. Rh4 {[%emt 0:01:09]} Ke7 {[%emt 0:00:44]} 38. Rh1 {[%emt 0:00:14]} Kf6 {[%emt 0:00:42]} 39. Rh4 {[%emt 0:00:37]} (39. b4 $15) 39... Kg5 {[%emt 0:01:14]} (39... Rc8 $17 {[%cal Ob6b5]} 40. Rh1 Ke6) 40. g3 $2 {[%emt 0:01:04][%mdl 8192] This costs White the game.} ({White should try} 40. Rh1 $15) 40... b5 $19 {[%emt 0:01:19] [#] And now ...bxc4 would win.} 41. Rh1 {[%emt 0:06:33]} fxg3+ {[%emt 0:01:16] Black is clearly winning.} 42. Kxg3 {[%emt 0:00:04]} bxc4 {[%emt 0:00:54]} 43. Bxc4 {[%emt 0:00:50]} Bxc4 {[%emt 0:00:11]} 44. bxc4 {[%emt 0:00:03]} Rb8 {[%emt 0:00:30]} 45. c5 {[%emt 0:01:34]} Rb3 {[%emt 0:00:31] Weighted Error Value: White=0.37/Black=0.08 (flawless)} ({Inferior is} 45... Rc8 46. f4+ exf4+ 47. Kf3 $17) 0-1

[Event "CCC-IM 2022"]
[Site "Ballerup"]
[Date "2022.05.29"]
[Round "9.5"]
[White "Brynell, Stellan"]
[Black "Nielsen, Thomas Bach"]
[Result "1-0"]
[ECO "A89"]
[WhiteElo "2401"]
[BlackElo "2189"]
[Annotator "TA"]
[PlyCount "73"]
[EventDate "2022.05.25"]
[EventType "tourn"]
[EventCountry "DEN"]
[SourceTitle "playchess.com"]
[Source "ChessBase"]
[SourceQuality "1"]
[TimeControl "5400+30"]

{[%evp 21,73,31,70,51,54,29,39,34,66,0,57,62,79,18,25,0,17,0,0,0,0,0,25,-5,-6,-6,-7,-6,0,-45,-41,-58,-43,-64,-64,-60,-60,-85,-91,-84,-16,-26,-23,-39,-5,-131,540,533,604,583,671,665,727,727]} 1. d4 {[%emt 0:00:06]} f5 {[%emt 0:00:08]} 2. Nf3 {[%emt 0:00:13]} Nf6 {[%emt 0:00:08]} 3. g3 {[%emt 0:00:04]} g6 {[%emt 0:00:05]} 4. Bg2 {[%emt 0:00:05]} Bg7 {[%emt 0:00:05]} 5. c4 {[%emt 0:00:06]} d6 {[%emt 0:00:24]} 6. O-O {[%emt 0:00:06]} O-O {[%emt 0:00:05]} 7. Nc3 {[%emt 0:00:05]} Nc6 {[%emt 0:00:08]} 8. d5 {[%emt 0:00:29]} Na5 {[%emt 0:00:15]} 9. Qa4 {[%emt 0:00:12]} c5 {[%emt 0:01:09]} 10. dxc6 {[%emt 0:00:32]} Nxc6 {[%emt 0:04:19]} 11. Rd1 {[%emt 0:06:05]} Bd7 {[%emt 0:04:41][%cal Oc6d4] [#] Strongly threatening ...Nd4!} 12. c5 {[%emt 0:18:21] A89: Dutch Defence: Leningrad System: 5 Nf3 0-0 6 0-0 d6 7 Nc3 Nc6.} dxc5 {[%emt 0:13:16][%cal Oc6d4]} 13. Qc4+ {[%emt 0:04:14]} e6 {[%emt 0:11:07]} 14. Qxc5 {[%emt 0:00:23] [#] White is slightly better.} h6 $146 {[%emt 0:06:03]} ({Predecessor:} 14... Qa5 15. Qxa5 Nxa5 16. Ne5 Rfd8 17. Be3 Nc6 18. Nxd7 Nxd7 19. Bxc6 bxc6 20. Rd6 Ne5 {1-0 (29) Veljkovic,D-Keserovic,M (2217) Belgrade 2008}) 15. Qc4 {[%emt 0:15:16]} (15. Be3 $14) 15... Kh7 {[%emt 0:03:28]} (15... Rc8 $11) 16. Bf4 {[%emt 0:02:19]} Rc8 {[%emt 0:07:28][%cal Oe6e5]} 17. Bd6 {[%emt 0:04:57] Against e5. White is much more active.} (17. Qb3 $16) 17... Re8 {[%emt 0:00:14]} 18. Qh4 {[%emt 0:05:36]} Nh5 {[%emt 0:02:55]} 19. Qxd8 {[%emt 0:00:21]} Rexd8 {[%emt 0:00:57]} 20. e4 {[%emt 0:03:08]} e5 {[%emt 0:00:10][%cal Be6e5,Be5e4][%mdl 32]} 21. exf5 {[%emt 0:09:01]} gxf5 {[%emt 0:02:07]} (21... Bxf5 $5 {[%cal Rc6d4]} 22. Nh4 Bg4 $11) 22. Rd2 {[%emt 0:06:38]} Be6 {[%emt 0:04:17]} 23. Rad1 {[%emt 0:00:46]} e4 {[%emt 0:04:03]} 24. Nh4 {[%emt 0:00:25][%cal Og3g4]} Na5 {[%emt 0:01:17][%cal Bc6a5,Ba5c4,Bc4b2][%mdl 32] Hoping for ...Nc4.} 25. Bf4 {[%emt 0:16:43]} Rxd2 {[%emt 0:00:23]} 26. Bxd2 {[%emt 0:00:02][%cal Oc3e4]} Nc4 {[%emt 0:03:01]} 27. Bc1 {[%emt 0:00:01][%cal Og3g4] [#]} Nxb2 $1 {[%emt 0:04:40]} 28. Bxb2 {[%emt 0:00:02][%cal Od1d6]} Bxc3 {[%emt 0:00:13]} 29. Bxc3 {[%emt 0:00:40]} Rxc3 {[%emt 0:00:03]} 30. g4 {[%emt 0:00:21]} Nf6 {[%emt 0:04:19]} (30... fxg4 $17 {White must now prevent ...Nf6.} 31. Bxe4+ Kg7) 31. Nxf5 $11 {[%emt 0:00:02]} Bxa2 {[%emt 0:01:01]} 32. h3 {[%emt 0:00:00][%cal Bh2h3,Bh3h4][%mdl 32]} Kg6 {[%emt 0:04:12]} 33. Rd6 {[%emt 0:01:35] Against Be6} (33. Ng3 $11 {remains equal.}) 33... Rc6 $2 {[%emt 0:02:12][%mdl 8192] Black cannot hold the game after this.} (33... Rd3 $17 {and life is bright. aiming for ...Rxd6.} 34. Nd4 Bd5) 34. Ne7+ $18 {[%emt 0:00:07] White is clearly winning.} Kg5 {[%emt 0:02:50]} 35. h4+ {[%emt 0:02:19]} Kxg4 {[%emt 0:01:54]} 36. Nxc6 {[%emt 0:00:14]} bxc6 {[%emt 0:00:39]} 37. Rxf6 {[%emt 0:00:07] Weighted Error Value: White=0.29 (precise) /Black=0.55} 1-0